Cogmind - Beta 13 X2 --- EXPLORER MODE // 2024.02.11 @ 18:48:23 // Winter2019/RPGLIKE Player: H3-RMN Result: Destroyed by P-80 Master with Gamma Rifle Performance ------------- Evolutions (7) 3500 Regions Visited (24) 4800 Robots Destroyed (715) 3575 Value Destroyed (40585) 40585 Prototype IDs (135) 2700 Alien Tech Used (0) 0 Bonus (20653) 20653 TOTAL SCORE: 75813 Bonus ------- Triggered Max Security 1000 High Alert Combat Kills 13440 Follower Combat Kills 2571 Entered Garrisons 800 Used RIF Installer 2000 Entered DSFs 500 Network Hubs Disabled 400 Aligned with FarCom 300 Built Enhanced Grunts 300 A7 Reached Mainframe 300 Met R17 at Cetus 500 Scanned by Researcher 500 Friendly Fire -1958 Cogmind --------- Core Integrity 0/1850 Matter 115/300 Energy 300/350 System Corruption 29% Temperature Cool (0) Movement Treading (147) Location -3/Testing Parts ------- > --- POWER (2) -------- Quantum Reactor > --- PROPULSION (4) --- Experimental Biometal Heavy Treads Advanced Heavy Siege Treads > --- UTILITY (15) ----- Experimental Thermal Generator Advanced Cryofiber Web Advanced Cooling System Advanced Coolant Injector Experimental Core Analyzer Precision Energy Filter Quantum Capacitor Improved Focal Shield Advanced Thermal Shield EM Disruption Field Advanced System Restoration Module > --- WEAPON (4) ------- Force Rifle Compact Tesla Bomb Launcher Advanced Remote Datajack > --- INVENTORY (6) ---- Protomatter-100 Long-range Terrain Scanner Relay Coupler [NC] (140) Skeleton Box Advanced Recalibrator Advanced Variable Charge Gun Peak State ------------ > --- POWER ------------ Quantum Reactor Improved Quantum Reactor > --- PROPULSION ------- Experimental Biometal Heavy Treads Advanced Heavy Siege Treads > --- UTILITY ---------- Experimental Thermal Generator Experimental Thermal Generator Advanced Cryofiber Web Advanced Cooling System Advanced Coolant Injector Long-range Terrain Scanner Experimental Core Analyzer Precision Energy Filter Quantum Capacitor Advanced Powered Armor Advanced Thermal Shield EM Disruption Field Advanced Shield Generator Advanced System Restoration Module > --- WEAPON ----------- Force Rifle Enhanced Nova Cannon Compact Tesla Bomb Launcher Advanced Remote Datajack > --- INVENTORY -------- Protomatter Improved Focal Shield Relay Coupler [NC] Skeleton Box Advanced Recalibrator Advanced Variable Charge Gun [Rating: 199] Favorites ----------- Power Quantum Reactor Engine F-cell Engine Power Core Light Neutrino Core Reactor Quantum Reactor Propulsion Advanced Treads Treads Advanced Treads Utility Experimental Thermal Generator Device Experimental Thermal Generator Processor Transport Network Coupler Hackware Relay Coupler [NC] Protection Centrium Medium Armor Plating Weapon Advanced Variable Charge Gun Energy Gun Advanced Variable Charge Gun Energy Cannon Enhanced Nova Cannon Ballistic Gun Assault Rifle Ballistic Cannon Heavy Linear Accelerator Launcher Compact Tesla Bomb Launcher Special Weapon Improved Remote Datajack Slashing Weapon Blade Saw Build | -11 -10 -10 -10 -9 -8 -8 -8 -8 -6 -6 -6 -6 -6 -6 -5 -5 -5 -5 -4 -4 -4 -4 -3 -3 ------- Run | Yrd Mat Min Exi Min Mat Sto Gar Rec Fac Ext Cet Arc Hub Gar Fac Was Fac DSF Fac Gar Fac Gar Res Tes Slots Evolved 21 | 6 . . . 3 3 2 1 . 2 . . . . . 1 . . . 1 . 1 . . 1 Power 1 | . . . . . 1 . . . . . . . . . . . . . . . . . . . Propulsion 3 | 1 . . . . 1 . . . . . . . . . . . . . . . 1 . . . Utility 14 | 4 . . . 2 . 2 1 . 2 . . . . . 1 . . . 1 . . . . 1 Weapon 3 | 1 . . . 1 1 . . . . . . . . . . . . . . . . . . . Parts Attached 249 | 9 3 2 . 6 24 10 4 1 39 4 9 3 . 9 44 8 1 2 34 10 10 1 . 16 Power 21 | 1 . . . . 3 1 . . 3 . 2 . . . 4 1 . . 2 1 . . . 3 Engine 7 | 1 . . . . 3 1 . . 2 . . . . . . . . . . . . . . . Core 2 | . . . . . . . . . 1 . . . . . 1 . . . . . . . . . Reactor 12 | . . . . . . . . . . . 2 . . . 3 1 . . 2 1 . . . 3 Propulsion 15 | 2 . . . . 4 . . . 1 . 1 . . . 2 . . 2 2 . 1 . . . Treads 15 | 2 . . . . 4 . . . 1 . 1 . . . 2 . . 2 2 . 1 . . . Leg . | . . . . . . . . . . . . . . . . . . . . . . . . . Wheel . | . . . . . . . . . . . . . . . . . . . . . . . . . Hover . | . . . . . . . . . . . . . . . . . . . . . . . . . Flight . | . . . . . . . . . . . . . . . . . . . . . . . . . Utility 139 | 4 1 2 . 3 10 4 3 1 18 4 4 3 . 6 28 6 1 . 19 6 6 1 . 9 Device 115 | 1 1 1 . 3 5 4 1 1 18 4 3 3 . 4 27 6 1 . 17 4 5 . . 6 Storage . | . . . . . . . . . . . . . . . . . . . . . . . . . Processor 7 | 1 . . . . 2 . . . . . . . . . . . . . 1 . 1 . . 2 Hackware 6 | . . . . . . . 2 . . . . . . 2 . . . . . 2 . . . . Protection 11 | 2 . 1 . . 3 . . . . . 1 . . . 1 . . . 1 . . 1 . 1 Artifact . | . . . . . . . . . . . . . . . . . . . . . . . . . Weapon 74 | 2 2 . . 3 7 5 1 . 17 . 2 . . 3 10 1 . . 11 3 3 . . 4 Energy Gun 39 | 1 1 . . 1 4 4 . . 13 . 1 . . 2 5 1 . . 5 . 1 . . . Energy Cannon 9 | . . . . 1 2 . . . 1 . . . . . . . . . 2 2 1 . . . Ballistic Gun 4 | 1 1 . . . . . . . 1 . 1 . . . . . . . . . . . . . Ballistic Cannon 2 | . . . . . . . . . . . . . . 1 . . . . 1 . . . . . Launcher 5 | . . . . 1 . 1 . . 1 . . . . . . . . . . . . . . 2 Special Weapon 13 | . . . . . . . 1 . 1 . . . . . 5 . . . 2 1 1 . . 2 Impact Weapon . | . . . . . . . . . . . . . . . . . . . . . . . . . Slashing Weapon 2 | . . . . . 1 . . . . . . . . . . . . . 1 . . . . . Piercing Weapon . | . . . . . . . . . . . . . . . . . . . . . . . . . Special Melee Weapon . | . . . . . . . . . . . . . . . . . . . . . . . . . Unidentified Prototypes 25 | . . 1 . . . 3 . . 4 . 4 . . . 2 . . . 8 . 1 . . 2 Corrupted Parts 6 | . . . . . . . . . . . 1 . . . . . . . . . . . . 5 System Corruption 24 | . . . . . . . . . . . 3 . . . . . . . . . . . . 21 Parts Lost 4 | . . . . . . . . . . . . . . . . 3 . . . . . . . 1 Power 1 | . . . . . . . . . . . . . . . . . . . . . . . . 1 Propulsion 1 | . . . . . . . . . . . . . . . . 1 . . . . . . . . Utility 1 | . . . . . . . . . . . . . . . . 1 . . . . . . . . Weapon 1 | . . . . . . . . . . . . . . . . 1 . . . . . . . . Highest Loss Streak 3 | . . . . . . . . . . . . . . . . 3 . . . . . . . 1 To Critical Strikes 1 | . . . . . . . . . . . . . . . . . . . . . . . . 1 Average Slot Usage (%) 93 | . 96 100 100 99 97 98 100 100 99 100 95 95 95 94 92 81 81 85 89 89 88 87 87 83 Engine 4 | . 10 10 10 8 10 11 10 10 8 4 4 4 4 4 1 . . . . . . . . . Reactor 4 | . . . . . . . . . . . 3 4 4 4 6 9 9 9 7 7 8 8 8 6 Treads 11 | . 20 20 20 17 14 16 15 15 14 14 9 9 9 9 9 4 4 8 7 8 8 8 8 8 Device 43 | . 16 28 30 34 31 28 33 34 40 47 47 47 47 47 47 48 50 50 51 51 50 50 50 47 Processor 2 | . 10 6 . . 4 10 5 5 3 . . . . . . . . . . . 1 3 . 3 Hackware 3 | . . . . . . . 6 6 4 4 4 4 4 4 4 4 4 4 4 4 2 . . . Protection 4 | . 20 14 20 17 8 5 5 5 4 4 4 4 4 4 4 . . . . . . . 4 2 Energy Gun 13 | . 10 10 10 9 14 22 18 15 20 19 18 19 19 18 12 8 9 9 10 8 8 8 8 4 Energy Cannon 1 | . . . . 2 7 . . . . . . . . . . . . . . 2 4 4 4 2 Special Weapon 2 | . . . . . . . 2 5 . . . . . . 5 4 4 4 5 4 4 4 4 4 Naked Turns . | . . . . . . . . . . . . . . . . . . . . . . . . . Heaviest Build 137 | 12 15 18 18 26 35 48 48 46 60 58 82 82 82 104 99 100 102 102 111 119 121 134 134 137 Greatest Support 170 | 40 40 40 40 40 66 66 66 66 66 64 105 105 105 105 112 112 85 112 115 115 170 170 170 170 Greatest Overweight (x) 2 | . . . . . . . . . . . . . . . 2 1 1 1 . 1 1 . . . Average Overweight (x) . | . . . . . . . . . . . . . . . . . 1 . . . . . . . Largest Inventory Capacity 6 | 2 2 2 2 2 4 4 5 5 6 6 6 6 6 6 6 6 6 6 6 6 6 6 6 6 Average Capacity 5 | 1 2 2 2 2 3 4 4 5 5 6 6 6 6 6 6 6 6 6 6 6 6 6 6 6 Most Carried 6 | . 2 2 2 2 4 4 5 5 5 6 6 6 6 6 6 6 6 6 6 6 6 6 6 6 Average Carried 5 | . 1 2 1 2 3 3 4 4 4 5 6 6 6 5 5 5 6 5 5 5 5 6 6 5 Final Capacity 6 | 2 2 2 2 2 4 4 5 5 6 6 6 6 6 6 6 6 6 6 6 6 6 6 6 6 Final Carried 6 | . 2 2 2 2 4 4 5 5 5 6 6 6 6 6 6 6 6 6 6 6 6 6 6 6 Class Distribution -------------------- 53% | Hacker-Tank 29% | Hacker-Skirmisher 7% | Scavenger-Tank Dominant Class ---------------- Hacker-Skirmisher | -10/Materials Hacker-Skirmisher | -10/Mines Hacker-Skirmisher | -10/Exiles Hacker-Skirmisher | -9/Mines Hacker-Skirmisher | -8/Materials Hacker-Skirmisher | -8/Storage Hacker-Skirmisher | -8/Garrison Hacker-Skirmisher | -8/Recycling Hacker-Tank | -6/Factory Hacker-Tank | -6/Extension Hacker-Gunner | -6/Cetus Scavenger-Skirmisher | -6/Archives Scavenger-Skirmisher | -6/Hub_04(d) Scavenger-Tank | -6/Garrison Hacker-Tank | -5/Factory Hacker-Tank | -5/Waste Hacker-Tank | -5/Factory Hacker-Tank | -5/DSF Hacker-Tank | -4/Factory Hacker-Tank | -4/Garrison Hacker-Tank | -4/Factory Hacker-Tank | -4/Garrison Hacker-Tank | -3/Research Hacker-Tank | -3/Testing Resources | -11 -10 -10 -10 -9 -8 -8 -8 -8 -6 -6 -6 -6 -6 -6 -5 -5 -5 -5 -4 -4 -4 -4 -3 -3 ----------- Run | Yrd Mat Min Exi Min Mat Sto Gar Rec Fac Ext Cet Arc Hub Gar Fac Was Fac DSF Fac Gar Fac Gar Res Tes Matter Collected 3851 | 294 159 29 . 147 220 120 40 10 397 40 90 30 . 114 503 44 . 122 414 284 137 . 10 647 Remotely . | . . . . . . . . . . . . . . . . . . . . . . . . . Salvage Created 38162 | 76 543 76 . 322 1012 1570 732 233 2941 1002 339 102 1504 1794 5470 315 . 395 3474 2240 2674 2566 . 8782 Parts 1722 | 5 32 1 . 12 77 99 42 11 141 32 14 4 43 48 224 6 . 17 150 74 124 108 . 458 Haulers Intercepted 24 | . 2 . . . 4 5 . . 5 2 . . . . 3 . . . 1 . 2 . . . Recyclers Shooed 12 | . . . . . . 2 . . . . . . . . 5 . . . 4 . 1 . . . Parts Field Recycled . | . . . . . . . . . . . . . . . . . . . . . . . . . Retrieved Matter . | . . . . . . . . . . . . . . . . . . . . . . . . . Parts Self-Destructed . | . . . . . . . . . . . . . . . . . . . . . . . . . Prevented . | . . . . . . . . . . . . . . . . . . . . . . . . . Kills | -11 -10 -10 -10 -9 -8 -8 -8 -8 -6 -6 -6 -6 -6 -6 -5 -5 -5 -5 -4 -4 -4 -4 -3 -3 ------- Run | Yrd Mat Min Exi Min Mat Sto Gar Rec Fac Ext Cet Arc Hub Gar Fac Was Fac DSF Fac Gar Fac Gar Res Tes Combat Hostiles Destroyed 641 | . 12 . . 7 23 31 21 4 59 16 5 2 16 23 98 1 . 8 64 38 43 46 . 124 Melee 2 | . . . . . . . . . . . . . . . . . . . . 1 . . . 1 Guns 370 | . 12 . . 7 11 28 20 3 51 13 3 2 14 19 81 1 . 3 57 26 13 . . 6 Cannons 86 | . . . . . 5 . . 1 . . . . . . . . . . . 4 24 43 . 9 AOE 56 | . . . . . 3 2 1 . . . . . . . . . . . . . . . . 50 Classes Destroyed 26 | 2 4 . . 1 4 2 3 . 3 1 . . . . 1 1 . . 1 1 . . . 2 Worker 16 | . . . . 1 . . . . 3 . . . 4 . 5 . . . 2 . 1 . . . Builder 3 | . . . . . 1 . . . 1 . . . . . 1 . . . . . . . . . Tunneler 5 | 1 . . . 1 1 . . . 2 . . . . . . . . . . . . . . . Hauler 24 | . 2 . . . 4 5 . . 5 2 . . . . 3 . . . 1 . 2 . . . Recycler 11 | 1 . 1 . . 1 1 . . 1 . . . 2 . 4 . . . . . . . . . Mechanic 5 | . . . . . . 1 . . . . . . . . . . . . . . . . . 4 Operator 8 | . . . . . 2 3 . . 1 1 . . . . 1 . . . . . . . . . Watcher 21 | . 2 . . . 1 2 2 . 3 1 1 . 3 . 4 . . . 1 . . . . 1 Swarmer 69 | . 2 . . . 7 3 9 . 4 2 . . . . 15 . . . 6 3 2 16 . . Cutter 3 | . . . . . . . 2 . . . . . . 1 . . . . . . . . . . Saboteur 14 | . . . . . . . . . . . . . . . . . . . 1 3 . . . 10 Grunt 239 | . 10 . . 7 8 16 6 . 26 6 . . 10 13 23 . . 4 20 11 16 10 . 53 Brawler 31 | . . . . . . . 1 . . 2 . . 1 . 2 . . 1 2 9 . 2 . 11 Duelist 14 | . . . . . . . . . 3 1 . . . . . . . . 1 1 1 . . 7 Protector 12 | . . . . . . . . . . . . . . . 1 . . . . . 1 . . 10 Sentry 67 | . . . . . 7 10 . 4 5 3 . 2 3 4 8 . . . 7 3 5 6 . . Demolisher 4 | . . . . . . 2 1 . . . . . . . . . . . 1 . . . . . Specialist 18 | . . . . . . . . . 4 . . . . . 8 . . 2 2 . 2 . . . Hunter 71 | . . . . . 1 . 2 . 10 . . . 1 1 15 . . . 11 3 9 6 . 12 Programmer 63 | . . . . . . . 1 . 4 . . . 1 . 23 . . . 10 3 4 4 . 13 Heavy 10 | . . . . . . . . . 3 . . . . . 3 . . 1 2 . 1 . . . Behemoth 12 | . . . . . . . . . . 2 . . . 4 . . . . 1 1 1 3 . . Compactor 1 | . . . . . . . . . . . . . . . . 1 . . . . . . . . Cetus Guard 5 | . . . . . . . . . . . 5 . . . . . . . . . . . . . Investigator 2 | . . . . . . . . . . . . . . . . . . . . . . . . 2 Striker 5 | . . . . . . . . . . . . . . . . . . . . 1 1 . . 3 Executioner 5 | . . . . . . . . . . . . . . . . . . . . . . . . 5 Best Kill Streak 45 | 2 3 1 . 4 5 13 5 1 8 5 4 2 8 5 5 1 . 5 16 8 8 15 . 45 Combat Bots Only 43 | . 3 . . 2 4 9 5 1 8 4 3 2 6 5 5 1 . 5 16 8 8 15 . 43 Max Kills in Single Turn 7 | 1 2 1 . 1 3 2 3 1 5 2 1 1 3 2 2 1 . 1 1 2 1 1 . 7 Gunslinging 2 | . 1 . . . 2 1 1 . 1 1 . . . 1 1 . . . . . . . . . Exploded 7 | . . . . . 2 1 1 . . . . . . . . . . . . . . . . 7 Melee 1 | . . . . . . . . . . . . . . . . . . . . 1 . . . 1 Uniques/NPCs Destroyed 1 | . . . . . . . . . . . 1 . . . . . . . . . . . . . A7 (-6/Cetus) Combat | -11 -10 -10 -10 -9 -8 -8 -8 -8 -6 -6 -6 -6 -6 -6 -5 -5 -5 -5 -4 -4 -4 -4 -3 -3 -------- Run | Yrd Mat Min Exi Min Mat Sto Gar Rec Fac Ext Cet Arc Hub Gar Fac Was Fac DSF Fac Gar Fac Gar Res Tes Hostile Shots Fired 3838 | . 82 . . 38 84 103 90 10 322 39 11 . 54 61 556 3 . 48 711 223 380 226 . 797 Missed 1015 | . 19 . . 10 19 31 19 1 77 16 4 . 21 25 150 . . 16 193 56 105 43 . 210 Damage Taken 19025 | . 435 . . 234 746 727 726 92 1786 161 77 22 244 302 2405 39 . 228 2488 1193 1551 1016 36 4517 Core 13733 | . 299 . . 150 521 526 529 64 1244 114 55 17 174 192 1589 33 . 180 1837 928 1169 764 22 3326 Absorbed by Shields 5646 | . . . . . . . . 16 572 67 29 8 102 117 925 14 . 93 1040 477 637 446 12 1091 Reduced by Siege Mode 262 | . . . . . . . . . . . . . . 1 20 . . 3 64 2 76 21 . 75 Redirected to Core 11832 | . 223 . . 114 416 471 457 49 1055 74 55 17 126 171 1404 20 . 160 1637 792 1017 696 22 2856 Redirected to Shielding 15 | . 15 . . . . . . . . . . . . . . . . . . . . . . . Ignored by Resistances 33895 | . 282 . . 140 457 438 439 67 1858 229 64 17 261 405 5283 84 . 551 6012 2516 3673 2421 27 8671 Core Remaining (%) 98 | 100 . . . 96 . . . 100 . . . . . 97 . . . 100 . . . 100 . . Volleys Fired 2257 | 4 43 3 . 29 49 78 55 10 102 22 19 5 26 53 402 27 3 56 423 296 233 185 . 134 Largest 4 | 2 2 2 . 2 4 4 4 4 4 4 4 4 4 4 4 1 1 1 2 2 3 1 . 1 Hottest 364 | 60 70 70 . 70 230 230 221 191 364 364 364 344 344 344 344 85 7 85 160 200 280 120 . 120 Shots Fired 3511 | 8 85 6 . 58 101 218 161 32 395 83 61 16 102 203 611 27 3 56 424 298 244 185 . 134 Gun 2956 | 8 85 6 . 58 54 218 158 30 394 83 61 16 102 201 597 22 . 56 410 252 114 . . 31 Cannon 411 | . . . . . 47 . . . . . . . . 2 . . . . . 27 127 185 . 23 Launcher 78 | . . . . . . . . . . . . . . . . . . . . . . . . 78 Special 66 | . . . . . . . 3 2 1 . . . . . 14 5 3 . 14 19 3 . . 2 Kinetic 81 | 4 43 3 . 29 . . . . . . . . . 2 . . . . . . . . . . Thermal 3082 | 4 42 3 . 29 43 144 138 32 337 83 61 16 102 201 600 22 . 56 410 279 241 185 . 54 Explosive . | . . . . . . . . . . . . . . . . . . . . . . . . . Electromagnetic 290 | . . . . . 58 74 23 . 57 . . . . . . . . . . . . . . 78 Robot Hit Streak 89 | 6 36 8 . 22 36 24 22 11 44 21 39 7 42 30 71 30 31 18 63 52 89 43 . 50 Robot Miss Streak 2 | . 1 . . 1 2 2 2 1 2 1 2 1 1 1 2 . 1 1 2 2 1 2 . 2 Penetration Max . | . . . . . . . . . . . . . . . . . . . . . . . . . Secondary Targets 53 | . 4 . . 1 2 3 8 . 16 7 1 . 1 4 5 . . . 1 . . . . . Max Gunslinging Chain 2 | . 1 . . 1 2 1 1 . 2 1 1 . 1 1 1 . . . 1 . . . . . Capacitor 1475 | . . . . . . . . . . . . . . . 251 22 . 56 408 275 226 185 . 52 Shots Hit Robots 2901 | 6 76 6 . 51 86 150 93 25 308 70 51 12 76 127 531 27 2 53 393 262 222 157 . 117 Core Hits 1465 | 3 30 2 . 19 41 68 37 6 142 39 16 4 39 37 206 5 . 16 144 71 84 72 . 384 Critical Kills 19 | . . . . . . . . . . . . . . . . . . . 1 4 7 3 . 4 Critical Parts Destroyed 13 | . 1 . . . . . . . . . . . . . . . . . 3 5 2 . . 2 Critical Strikes 171 | . 4 . . 4 5 9 1 . 24 8 5 1 6 7 55 . . 10 5 9 9 3 . 6 Burn 133 | . 3 . . 4 2 7 1 . 23 8 5 1 6 7 55 . . 10 1 . . . . . Meltdown 10 | . . . . . . . . . . . . . . . . . . . . 1 5 3 . 1 Destroy 22 | . 1 . . . . . . . . . . . . . . . . . 4 8 4 . . 5 Corrupt 4 | . . . . . 1 2 . . 1 . . . . . . . . . . . . . . . Sever 2 | . . . . . 2 . . . . . . . . . . . . . . . . . . . Melee Attacks 5 | . . . . . 5 . . . . . . . . . . . . . . . . . . . Impact . | . . . . . . . . . . . . . . . . . . . . . . . . . Slashing 5 | . . . . . 5 . . . . . . . . . . . . . . . . . . . Piercing . | . . . . . . . . . . . . . . . . . . . . . . . . . Sneak Attacks 1 | . . . . . 1 . . . . . . . . . . . . . . . . . . . Combat Hostiles . | . . . . . . . . . . . . . . . . . . . . . . . . . Follow-up Attacks . | . . . . . . . . . . . . . . . . . . . . . . . . . Damage Inflicted 105250 | 63 920 70 . 650 2140 3181 2093 532 9874 2620 1733 407 2849 4641 16106 718 . 954 12444 7374 8353 7171 . 20357 Guns 69259 | 63 920 70 . 650 768 2828 2060 508 9348 2620 1733 407 2812 4641 15848 718 . 954 12146 6520 2938 . . 707 Cannons 15155 | . . . . . 838 . . . . . . . . . . . . . . 854 5363 7130 . 970 Explosions 19945 | . . . . . 438 335 33 . 418 . . . . . . . . . . . . 41 . 18680 Melee 96 | . . . . . 96 . . . . . . . . . . . . . . . . . . . Ramming 744 | . . . . . . 18 . . 108 . . . 37 . 231 . . . 298 . 52 . . . Kinetic 850 | 18 463 32 . 337 . . . . . . . . . . . . . . . . . . . . Thermal 85456 | 45 457 38 . 313 885 2064 1811 532 8588 2620 1733 407 2812 4641 15875 718 . 954 12146 7374 8301 7130 . 6012 Explosive 215 | . . . . . 174 . . . . . . . . . . . . . . . . 41 . . Electromagnetic 17889 | . . . . . 985 1099 282 . 1178 . . . . . . . . . . . . . . 14345 Impact . | . . . . . . . . . . . . . . . . . . . . . . . . . Slashing 96 | . . . . . 96 . . . . . . . . . . . . . . . . . . . Piercing . | . . . . . . . . . . . . . . . . . . . . . . . . . Highest Corruption 28 | . . . . . 1 . . . 1 . 3 . . . 2 2 1 . 2 3 3 . . 28 Average Corruption 3 | . . . . . 1 . . . 1 . 2 . . . 1 1 1 . 1 1 2 . . 11 Corruption Purged 37 | . . . . . 1 . . . 2 . 3 . . . 6 5 1 . 1 6 3 . . 9 Corruption Blocked . | . . . . . . . . . . . . . . . . . . . . . . . . . Effects 31 | . . . . . . . . . 2 . . . . . 1 1 . . 1 4 3 . . 19 Message Errors 5 | . . . . . . . . . . . . . . . . . . . 1 1 . . . 3 Matter Fused 7 | . . . . . . . . . 1 . . . . . . . . . . . 1 . . 5 Heat Flow Errors 3 | . . . . . . . . . . . . . . . 1 . . . . . . . . 2 Energy Discharges 3 | . . . . . . . . . 1 . . . . . . 1 . . . . . . . 1 Parts Fused 1 | . . . . . . . . . . . . . . . . . . . . . . . . 1 Data Loss (minor) 4 | . . . . . . . . . . . . . . . . . . . . 1 1 . . 2 Misfires 3 | . . . . . . . . . . . . . . . . . . . . . 1 . . 2 Alerts 2 | . . . . . . . . . . . . . . . . . . . . 2 . . . . Misdirections 1 | . . . . . . . . . . . . . . . . . . . . . . . . 1 Weapon Failures 2 | . . . . . . . . . . . . . . . . . . . . . . . . 2 Overload Shots 3 | . . . . . . . . . . . . . . 1 2 . . . . . . . . . Overflow Damage 513 | . . . . . 42 . . . 142 . . . . . 1 . . . 17 12 107 85 . 107 Projectiles 272 | . . . . . 19 . . . . . . . . . . . . . . 12 107 85 . 49 Explosions 223 | . . . . . 23 . . . 142 . . . . . . . . . . . . . . 58 Melee 18 | . . . . . . . . . . . . . . . 1 . . . 17 . . . . . Knockbacks 10 | . . . . . . 1 . . 2 . . . . . 5 . . . 2 . . . . . Impact 10 | . . . . . . 1 . . 2 . . . . . 5 . . . 2 . . . . . Kinetic . | . . . . . . . . . . . . . . . . . . . . . . . . . Secondary . | . . . . . . . . . . . . . . . . . . . . . . . . . Self-Inflicted Damage 407 | . . . . . 111 25 19 . 50 . . . . . . . . . . . 47 . . 155 Shots 27 | . . . . . 4 1 1 . 2 . . . . . . . . . . . 1 . . 18 Rammed 61 | . . . . . . 1 . . 10 . . . 5 . 16 . . . 23 . 6 . . . Targets Rammed 63 | . . . . . . 2 . . 10 . . . 5 . 17 . . . 23 . 6 . . . Kicked . | . . . . . . . . . . . . . . . . . . . . . . . . . Crushed 2 | . . . . . . 1 . . . . . . . . 1 . . . . . . . . . Highest Temperature 419 | 35 228 36 . 291 272 328 288 113 419 274 258 42 358 396 342 199 . 193 198 199 199 256 . 196 Average Temperature 104 | 18 68 15 . 125 65 113 87 54 114 104 101 36 124 133 88 116 . 99 114 109 117 111 . 115 Received Heat Transfer 6255 | . 333 . . 234 414 486 333 45 434 50 . . 78 136 568 . . 102 811 343 426 443 . 1019 Effects 10 | . . . . . . 1 . . 6 . 1 . 1 1 . . . . . . . . . . Energy Bleed 4 | . . . . . . 1 . . 2 . 1 . . . . . . . . . . . . . Interference 3 | . . . . . . . . . 2 . . . 1 . . . . . . . . . . . Short Circuit 1 | . . . . . . . . . . . . . . 1 . . . . . . . . . . Damage (minor) 2 | . . . . . . . . . 2 . . . . . . . . . . . . . . . Siege Activations 22 | . . . . . . . . . . . . . . 1 5 . . 1 6 1 3 2 . 3 Total Turns 517 | . . . . . . . . . . . . . . 18 130 . . 18 154 27 74 34 . 62 Longest Duration 66 | . . . . . . . . . . . . . . 18 54 . . 18 66 27 46 33 . 33 Robots Corrupted 64 | . . . . . 3 . . . . . . . . . . . . . . . . . . 61 Combat Hostiles 60 | . . . . . 3 . . . . . . . . . . . . . . . . . . 57 Parts Fried 146 | . . . . . 6 5 . . 5 . 1 . . . . . . . . . . . . 129 Impact Corruptions 3 | . . . . . . . . . . . . . . . 1 . . . 2 . . . . . Robots Melted 72 | . . . . . 1 1 . . 9 3 2 . 2 5 20 . . 5 7 7 6 3 . 1 Combat Hostiles 68 | . . . . . 1 1 . . 8 3 2 . 2 5 17 . . 5 7 7 6 3 . 1 Parts Melted 414 | . 4 . . 5 2 10 10 2 47 18 8 . 15 20 127 . . 16 35 35 37 14 . 9 Heat Transferred 120443 | 100 1401 111 . 1221 1682 4243 3041 925 14022 4625 2899 687 4379 6838 28475 853 . 3650 14323 9139 7967 5599 . 4263 Parts Sabotaged 12 | . . . . . . . . . . . . . . . . . . . . 3 . . . 9 Parts Stolen . | . . . . . . . . . . . . . . . . . . . . . . . . . Parts Stripped . | . . . . . . . . . . . . . . . . . . . . . . . . . Power Chain Reactions 36 | . . . . . 4 6 1 . 2 . . . . . . . . . . . . . . 23 Missiles Intercepted . | . . . . . . . . . . . . . . . . . . . . . . . . . Alert | -11 -10 -10 -10 -9 -8 -8 -8 -8 -6 -6 -6 -6 -6 -6 -5 -5 -5 -5 -4 -4 -4 -4 -3 -3 ------- Run | Yrd Mat Min Exi Min Mat Sto Gar Rec Fac Ext Cet Arc Hub Gar Fac Was Fac DSF Fac Gar Fac Gar Res Tes Peak Influence 4621 | 10 245 17 . 155 376 439 982 443 918 518 484 160 823 1197 505 16 7 193 916 2489 1048 1936 886 4621 Initial 970 | . 4 12 . . . . 146 319 750 177 183 51 38 171 466 16 7 3 75 408 970 351 817 373 Average 465 | 3 102 10 . 52 118 237 604 137 319 342 310 145 377 722 182 12 7 129 187 1431 608 1130 859 2886 Maximum Alert Level 5 | . 1 . . . 1 2 3 2 3 2 2 . 3 4 2 . . . 3 5 3 5 3 5 Low Security (%) 42 | 100 96 100 . 100 74 33 10 68 35 7 23 100 19 1 57 100 100 100 73 . 7 . . . Level 1 22 | . 3 . . . 25 58 17 21 34 52 44 . 45 20 34 . . . 14 . 20 3 . . Level 2 13 | . . . . . . 8 27 10 15 39 31 . 22 30 8 . . . 7 14 30 22 . . Level 3 11 | . . . . . . . 45 . 14 . . . 11 40 . . . . 3 18 41 12 100 . Level 4 3 | . . . . . . . . . . . . . . 7 . . . . . 17 . 39 . . Level 5 5 | . . . . . . . . . . . . . . . . . . . . 50 . 21 . . High Security . | . . . . . . . . . . . . . . . . . . . . . . . . . Max Security 2 | . . . . . . . . . . . . . . . . . . . . . . . . 99 Sterilizations 1 | . . . . . . . . . . . . . . . . . . 1 . . . . . . Squads Dispatched 131 | . 3 . . 2 2 6 . . 15 1 . . 11 . 24 . 1 2 16 . 17 . . 31 Investigation 30 | . 3 . . 2 2 1 . . 6 1 . . 5 . 4 . 1 . . . 5 . . . Extermination 19 | . . . . . . . . . 2 . . . 1 . 10 . . . 4 . 2 . . . Reinforcement 30 | . . . . . . 3 . . 5 . . . 2 . 9 . . 2 5 . 4 . . . Assault 38 | . . . . . . 2 . . 2 . . . . . . . . . 1 . 2 . . 31 Garrison 14 | . . . . . . . . . . . . . 3 . 1 . . . 6 . 4 . . . Intercept . | . . . . . . . . . . . . . . . . . . . . . . . . . Searches Triggered 1 | . . . . . . . . . 1 . . . . . . . . . . . . . . . Construction Impeded 4 | . . . . . . . . . . . . . 1 . . . . . 1 . 2 . . . Haulers Reinforced 1 | . . . . . . . . . . . . . . . 1 . . . . . . . . . Active Scanning Responses . | . . . . . . . . . . . . . . . . . . . . . . . . . Cargo Convoy Interrupts 4 | . . . . . . . . . 1 . . . . . 1 . . . 1 . 1 . . . Stealth | -11 -10 -10 -10 -9 -8 -8 -8 -8 -6 -6 -6 -6 -6 -6 -5 -5 -5 -5 -4 -4 -4 -4 -3 -3 --------- Run | Yrd Mat Min Exi Min Mat Sto Gar Rec Fac Ext Cet Arc Hub Gar Fac Was Fac DSF Fac Gar Fac Gar Res Tes Distress Signals 25 | . . . . . 4 1 . . 1 3 2 . 3 . 2 . . . 4 . 3 . . 2 Communications Jammed 98 | . . . . . . 65 31 . 2 . . . . . . . . . . . . . . . Distress Signals 90 | . . . . . . 59 31 . . . . . . . . . . . . . . . . . Times Spotted 955 | . 18 . . 8 34 49 31 4 77 22 11 4 36 28 145 6 . 8 110 50 58 53 1 202 Peak Tracking Total 29 | . 4 . . 2 5 6 7 1 8 4 5 1 8 4 7 2 . 4 13 9 8 8 1 29 Tactical Retreats 18 | . . . . 1 1 . . . 3 . . . . . 3 . . . 4 2 1 . . 3 Traps | -11 -10 -10 -10 -9 -8 -8 -8 -8 -6 -6 -6 -6 -6 -6 -5 -5 -5 -5 -4 -4 -4 -4 -3 -3 ------- Run | Yrd Mat Min Exi Min Mat Sto Gar Rec Fac Ext Cet Arc Hub Gar Fac Was Fac DSF Fac Gar Fac Gar Res Tes Traps Triggered 45 | . . . . . 2 1 1 . 7 . . . . . 15 . . 2 2 6 4 1 2 2 Indirectly 1 | . . . . . . . . . . . . . . . . . . . . . . . . 1 Trap Hack Attempts . | . . . . . . . . . . . . . . . . . . . . . . . . . Triggered . | . . . . . . . . . . . . . . . . . . . . . . . . . Disarmed . | . . . . . . . . . . . . . . . . . . . . . . . . . Reprogrammed 4 | . . . . . . 4 . . . . . . . . . . . . . . . . . . Reused . | . . . . . . . . . . . . . . . . . . . . . . . . . Traps Extracted . | . . . . . . . . . . . . . . . . . . . . . . . . . Installed . | . . . . . . . . . . . . . . . . . . . . . . . . . Triggered 2 | . . . . 1 . . . . . . . . . . . . . . . . . . . 1 Machines | -11 -10 -10 -10 -9 -8 -8 -8 -8 -6 -6 -6 -6 -6 -6 -5 -5 -5 -5 -4 -4 -4 -4 -3 -3 ---------- Run | Yrd Mat Min Exi Min Mat Sto Gar Rec Fac Ext Cet Arc Hub Gar Fac Was Fac DSF Fac Gar Fac Gar Res Tes Machines Disabled 61 | . . . . . 1 5 6 . 7 2 . 2 3 3 2 . . . . 5 7 7 . 11 Max in Single Turn 6 | . . . . . 1 1 1 . 5 . . 1 1 1 1 . . . . 1 6 2 . 1 Garrison Access 5 | . . . . . . . . . 2 . . . . . 1 . . . 1 . 1 . . . Garrison Relay 19 | . . . . . . . 4 . . . . . . 4 . . . . . 6 . 5 . . Phase Generator 1 | . . . . . . . . . . . . . . . . . . . . . . 1 . . Network Hub 2 | . . . . . . . . . . . . . 2 . . . . . . . . . . . Energy Cycler 1 | . . . . . . . . . . 1 . . . . . . . . . . . . . . Machines Repaired . | . . . . . . . . . . . . . . . . . . . . . . . . . Machines Dismantled 2 | . . . . . . . 2 . . . . . . . . . . . . . . . . . Machines Sabotaged . | . . . . . . . . . . . . . . . . . . . . . . . . . Overloaded Fab Kills . | . . . . . . . . . . . . . . . . . . . . . . . . . Hacking | -11 -10 -10 -10 -9 -8 -8 -8 -8 -6 -6 -6 -6 -6 -6 -5 -5 -5 -5 -4 -4 -4 -4 -3 -3 --------- Run | Yrd Mat Min Exi Min Mat Sto Gar Rec Fac Ext Cet Arc Hub Gar Fac Was Fac DSF Fac Gar Fac Gar Res Tes Machines Accessed 145 | . 8 . 2 2 9 7 . 15 13 3 2 1 11 2 31 . 2 . 16 4 12 3 2 . Terminals 90 | . 6 . . 1 8 4 . 6 8 3 2 . 10 2 15 . 2 . 8 4 6 3 2 . Fabricators 8 | . . . . . . . . . 1 . . . . . 4 . . . 1 . 2 . . . Repair Stations . | . . . . . . . . . . . . . . . . . . . . . . . . . Recycling Units 24 | . 2 . . . 1 2 . 9 1 . . . . . 6 . . . 3 . . . . . Scanalyzers 9 | . . . . . . . . . 2 . . . . . 4 . . . 2 . 1 . . . Garrison Access 10 | . . . . . . 1 . . 1 . . . 1 . 2 . . . 2 . 3 . . . Total Hacks 735 | . 40 . 5 4 40 29 . 55 49 11 7 25 40 13 205 . 6 . 101 21 67 3 14 . Successful 455 | . 24 . 5 3 26 25 . 40 27 6 7 25 19 5 127 . 1 . 62 8 36 3 6 . Failed 280 | . 16 . . 1 14 4 . 15 22 5 . . 21 8 78 . 5 . 39 13 31 . 8 . Catastrophic 53 | . 3 . . . 2 . . 1 3 2 . . 3 2 19 . 3 . 4 4 6 . 1 . Database Lockouts . | . . . . . . . . . . . . . . . . . . . . . . . . . Manual 344 | . 28 . 1 3 27 17 . 21 11 6 1 . 17 11 100 . . . 51 18 30 . 2 . Terminals 513 | . 35 . . 3 36 18 . 33 30 11 7 . 37 13 127 . 6 . 75 21 44 3 14 . Fabricators 30 | . . . . . . . . . 4 . . . . . 18 . . . 2 . 6 . . . Repair Stations . | . . . . . . . . . . . . . . . . . . . . . . . . . Recycling Units 81 | . 5 . . . 4 10 . 22 3 . . . . . 26 . . . 11 . . . . . Scanalyzers 55 | . . . . . . . . . 9 . . . . . 29 . . . 11 . 6 . . . Garrison Access 25 | . . . . . . 1 . . 3 . . . 3 . 5 . . . 2 . 11 . . . Terminal Hacks 236 | . 19 . 5 3 18 11 . 15 14 3 7 25 11 3 43 . 1 . 27 7 16 3 5 . Record 36 | . . . 4 . . . . . . . 7 25 . . . . . . . . . . . . Part Schematic 33 | . . . . . 3 3 . 3 4 . . . 2 . 10 . . . 4 . 3 . 1 . Robot Schematic 4 | . 1 . . . . . . . . . . . . . . . . . 3 . . . . . Robot Analysis 15 | . 1 . . . . . . 2 1 . . . . . 4 . . . 5 . 1 . 1 . Prototype ID Bank 53 | . 13 . . 2 10 1 . 5 1 1 . . . . 14 . . . . 3 1 . 2 . Open Door 3 | . . . . 1 . . . . . . . . . . . . . . . 1 . 1 . . Open DSF 4 | . . . . . . . . . 1 . . . . . 1 . 1 . 1 . . . . . Level Access Points 3 | . . . . . . . . . . . . . 1 . . . . . 1 . 1 . . . Branch Access Points 6 | . . . . . . . . 1 . . . . . . 1 . . . 2 . 1 . 1 . Emergency Access Points 4 | . . . . . . . . . . . . . . 1 . . . . 1 1 . 1 . . Machine Index 4 | . . . . . . . . . 1 . . . . . 1 . . . 1 . 1 . . . Terminal Index 7 | . . . . . . 2 . . 2 . . . 1 . 1 . . . 1 . . . . . Garrison Index 3 | . . . . . 1 . . . 1 . . . 1 . . . . . . . . . . . Unreport Threat 10 | . . . . . . . . 2 1 . . . 3 . . . . . . . 4 . . . Locate Traps 14 | . 2 . . . 1 2 . . 1 2 . . . . 4 . . . 2 . . . . . Reprogram Traps 1 | . . . . . . 1 . . . . . . . . . . . . . . . . . . Hauler Manifests 4 | . . . . . . . . . . . . . . . 1 . . . 2 . 1 . . . Registered Components 4 | . . . . . . 1 . 1 . . . . . . . . . . 1 . 1 . . . Registered Prototypes 2 | . . . . . . . . . . . . . . . . . . . 1 . 1 . . . Zone Layout 21 | . 2 . . . 3 1 . 1 1 . . . 3 1 6 . . . 2 . 1 . . . Garrison Registry 3 | . . . . . . . . . . . . . . 1 . . . . . 1 . 1 . . Patrol Navigation 1 | . . . . . . . . . . . . . . . . . . . . 1 . . . . Derelict Proto ID Bank 1 | . . . 1 . . . . . . . . . . . . . . . . . . . . . Fabricator Hacks 23 | . . . . . . . . . 3 . . . . . 14 . . . 2 . 4 . . . Load Schematic 12 | . . . . . . . . . 2 . . . . . 7 . . . 1 . 2 . . . Build 11 | . . . . . . . . . 1 . . . . . 7 . . . 1 . 2 . . . Repair Station Hacks . | . . . . . . . . . . . . . . . . . . . . . . . . . Recycling Unit Hacks 41 | . 2 . . . 2 4 . 12 2 . . . . . 14 . . . 5 . . . . . Process 1 | . . . . . . 1 . . . . . . . . . . . . . . . . . . Report Inventory 26 | . 2 . . . 1 2 . 9 1 . . . . . 8 . . . 3 . . . . . Retrieve Matter 1 | . . . . . . . . 1 . . . . . . . . . . . . . . . . Retrieve Components 13 | . . . . . 1 1 . 2 1 . . . . . 6 . . . 2 . . . . . Scanalyzer 47 | . . . . . . . . . 6 . . . . . 27 . . . 10 . 4 . . . Insert Component 17 | . . . . . . . . . 3 . . . . . 9 . . . 3 . 2 . . . Analyze 30 | . . . . . . . . . 3 . . . . . 18 . . . 7 . 2 . . . Garrison Access Hacks 10 | . . . . . . 1 . . 1 . . . 1 . 2 . . . 2 . 3 . . . Unlock Access 7 | . . . . . . 1 . . . . . . 1 . 1 . . . 1 . 3 . . . Seal Access 3 | . . . . . . . . . 1 . . . . . 1 . . . 1 . . . . . Unauthorized Hacks 98 | . 3 . . . 6 9 . 13 1 3 . . 7 2 27 . . . 16 1 9 . 1 . Terminals 55 | . 1 . . . 5 5 . 3 . 3 . . 5 2 15 . . . 10 1 4 . 1 . Track 17 | . . . . . 1 2 . . . . . . 2 1 5 . . . 4 . 2 . . . Assimilate 4 | . . . . . 2 . . . . . . . . . 2 . . . . . . . . . Botnet 26 | . 1 . . . 1 2 . 3 . 2 . . 2 1 6 . . . 5 1 1 . 1 . Disrupt 3 | . . . . . . . . . . . . . 1 . 1 . . . . . 1 . . . Operators 5 | . . . . . 1 1 . . . 1 . . . . 1 . . . 1 . . . . . Fabricators 1 | . . . . . . . . . . . . . . . 1 . . . . . . . . . Prioritize 1 | . . . . . . . . . . . . . . . 1 . . . . . . . . . Repair Stations . | . . . . . . . . . . . . . . . . . . . . . . . . . Recycling Units 32 | . 2 . . . 1 4 . 10 1 . . . . . 8 . . . 6 . . . . . Reject 9 | . . . . . . 1 . . . . . . . . 5 . . . 3 . . . . . Recyclers 2 | . . . . . . 1 . . . . . . . . . . . . 1 . . . . . Mask 9 | . . . . . . 2 . 1 1 . . . . . 3 . . . 2 . . . . . Tunnel 12 | . 2 . . . 1 . . 9 . . . . . . . . . . . . . . . . Scanalyzers . | . . . . . . . . . . . . . . . . . . . . . . . . . Garrison Access 10 | . . . . . . . . . . . . . 2 . 3 . . . . . 5 . . . Broadcast 4 | . . . . . . . . . . . . . 1 . 1 . . . . . 2 . . . Reprogram 4 | . . . . . . . . . . . . . 1 . 1 . . . . . 2 . . . Watchers 2 | . . . . . . . . . . . . . . . 1 . . . . . 1 . . . Data Cores Recovered 5 | . . . . . 2 . . . 1 1 . . . . 1 . . . . . . . . . Used 3 | . . . . . 1 . . . . 1 . . . . 1 . . . . . . . . . Hacking Detections 96 | . 7 . . 1 9 4 . 8 11 3 2 . 10 2 19 . 1 . 6 3 9 . 1 . Full Trace Events 26 | . 1 . . 1 1 2 . 6 5 1 . . 4 . 3 . 1 . . . 1 . . . Feedback Events 2 | . . . . . . . . . 1 . . . . . . . . . . . 1 . . . Corruption 2 | . . . . . . . . . 1 . . . . . . . . . . . 1 . . . Feedback Blocked . | . . . . . . . . . . . . . . . . . . . . . . . . . Robot Schematics Acquired 4 | . 1 . . . . . . . . . . . . . . . . . 3 . . . . . Robots Built 1 | . . . . . . . . . . . . . . . 1 . . . . . . . . . Authchips . | . . . . . . . . . . . . . . . . . . . . . . . . . Time 227 | . . . . . . . . . . . . . . . 40 . . . . . 187 . . . Total Robot Build Rating 1 | . . . . . . . . . . . . . . . 1 . . . . . . . . . Part Schematics Acquired 50 | . . . . . 3 3 . 3 7 . . . 2 . 19 . . . 7 . 5 . 1 . Parts Built 15 | . . . . . . . . . 2 . . . . . 10 . . . 2 . 1 . . . Authchips . | . . . . . . . . . . . . . . . . . . . . . . . . . Time 646 | . . . . . . . . . 84 . . . . . 435 . . . 53 . 74 . . . Total Part Build Rating 98 | . . . . . . . . . 8 . . . . . 69 . . . 12 . 9 . . . Parts Repaired . | . . . . . . . . . . . . . . . . . . . . . . . . . Time . | . . . . . . . . . . . . . . . . . . . . . . . . . Parts Recycled . | . . . . . . . . . . . . . . . . . . . . . . . . . Recycled Matter . | . . . . . . . . . . . . . . . . . . . . . . . . . Retrieved Matter . | . . . . . . . . . . . . . . . . . . . . . . . . . Retrieved Components 94 | . . . . . 7 9 . 10 6 . . . . . 49 . . . 13 . . . . . Parts Scanalyzed 17 | . . . . . . . . . 3 . . . . . 9 . . . 3 . 2 . . . Part Schematics Acquired 17 | . . . . . . . . . 3 . . . . . 9 . . . 3 . 2 . . . Parts Damaged 2 | . . . . . . . . . . . . . . . 1 . . . . . 1 . . . Bothacking | -11 -10 -10 -10 -9 -8 -8 -8 -8 -6 -6 -6 -6 -6 -6 -5 -5 -5 -5 -4 -4 -4 -4 -3 -3 ------------ Run | Yrd Mat Min Exi Min Mat Sto Gar Rec Fac Ext Cet Arc Hub Gar Fac Was Fac DSF Fac Gar Fac Gar Res Tes Used RIF Installer 4 | . . . . . . . 1 . . . . . . 1 . . . . . 1 . 1 . . Hotswap 1 | . . . . . . . . . . . . . . . . . . . . . . 1 . . Watcher Feeds 1 | . . . . . . . . . . . . . . 1 . . . . . . . . . . Structural Interface 1 | . . . . . . . . . . . . . . . . . . . . 1 . . . . Robots Hacked 26 | . . . . . . . . . 1 . . . . . 7 5 1 . 6 3 2 . . 1 Non-combat 17 | . . . . . . . . . 1 . . . . . 6 . 1 . 6 . 2 . . 1 Combat 9 | . . . . . . . . . . . . . . . 1 5 . . . 3 . . . . Robot Hacks Applied 31 | . . . . . . . . . 1 . . . . . 8 5 1 . 10 3 2 . . 1 parse_system 7 | . . . . . . . . . . . . . . . 1 . . . 2 3 . . . 1 no_distress 3 | . . . . . . . . . . . . . . . . . . . 1 . 2 . . . find_fabricator 1 | . . . . . . . . . . . . . . . . . 1 . . . . . . . drop_inventory 11 | . . . . . . . . . 1 . . . . . 6 . . . 4 . . . . . map_route 1 | . . . . . . . . . . . . . . . . . . . 1 . . . . . redirect_shields 1 | . . . . . . . . . . . . . . . . . . . 1 . . . . . ignore_targets 5 | . . . . . . . . . . . . . . . . 5 . . . . . . . . formatsys_high 2 | . . . . . . . . . . . . . . . 1 . . . 1 . . . . . Relay Couplers Released 40 | . . . . . . . 8 . . . . . . 7 2 . . . . 13 1 9 . . Machine Destruction 35 | . . . . . . . 7 . . . . . . 7 . . . . . 11 1 9 . . Programmers 5 | . . . . . . . 1 . . . . . . . 2 . . . . 2 . . . . Attached 6 | . . . . . . . 2 . . . . . . 2 . . . . . 2 . . . . Fabnet Peak Effective % . | . . . . . . . . . . . . . . . . . . . . . . . . . Robots Rewired 22 | . . . . . . . . . . . . . . 5 . . . . . 11 . 6 . . Allies Hacked 1 | . . . . . . . . . . . . . . . . . . . . . 1 . . . Hacks Repelled . | . . . . . . . . . . . . . . . . . . . . . . . . . Allies | -11 -10 -10 -10 -9 -8 -8 -8 -8 -6 -6 -6 -6 -6 -6 -5 -5 -5 -5 -4 -4 -4 -4 -3 -3 -------- Run | Yrd Mat Min Exi Min Mat Sto Gar Rec Fac Ext Cet Arc Hub Gar Fac Was Fac DSF Fac Gar Fac Gar Res Tes Total Allies 64 | . . . . . 1 12 . . 3 3 5 . 2 7 5 1 . . 1 11 7 6 . . Largest Group 12 | . . . . . 1 12 9 . 3 3 6 5 4 4 3 1 . . 1 6 11 3 2 . Highest-Rated Group 639 | . . . . . 10 235 187 . 93 210 639 480 384 267 182 31 . . 108 432 523 113 67 . Highest-Rated Ally 159 | . . . . . 10 31 31 . 31 159 159 96 96 85 91 31 . . 108 119 119 46 38 . Total Orders 5 | . . . . . . . . . . . . . . . . . . . 1 . 4 . . . STAY 4 | . . . . . . . . . . . . . . . . . . . . . 4 . . . DROP 1 | . . . . . . . . . . . . . . . . . . . 1 . . . . . Ally Attacks 509 | . . . . . . 54 68 . 16 34 35 19 87 49 11 2 . . . 57 54 23 . . Total Damage 14965 | . . . . . . 734 769 . 273 908 814 718 3367 1811 522 42 . . 707 2254 1780 266 . . Kills 87 | . . . . . . 6 7 . . 5 8 2 15 6 3 . . . 7 14 10 4 . . Allies Corrupted 2 | . . . . . . . . . . . . . . . 1 . . . . 1 . . . . Allies Melted 2 | . . . . . . . . . . . . . 2 . . . . . . . . . . . Intel | -11 -10 -10 -10 -9 -8 -8 -8 -8 -6 -6 -6 -6 -6 -6 -5 -5 -5 -5 -4 -4 -4 -4 -3 -3 ------- Run | Yrd Mat Min Exi Min Mat Sto Gar Rec Fac Ext Cet Arc Hub Gar Fac Was Fac DSF Fac Gar Fac Gar Res Tes Robot Analysis Total 15 | . 1 . . . . . . 2 1 . . . . . 4 . . . 5 . 1 . 1 . Derelict Logs Recovered 2 | . . 1 . 1 . . . . . . . . . . . . . . . . . . . . Drone Launches . | . . . . . . . . . . . . . . . . . . . . . . . . . Drone Recoveries . | . . . . . . . . . . . . . . . . . . . . . . . . . Exploration | -11 -10 -10 -10 -9 -8 -8 -8 -8 -6 -6 -6 -6 -6 -6 -5 -5 -5 -5 -4 -4 -4 -4 -3 -3 ------------- Run | Yrd Mat Min Exi Min Mat Sto Gar Rec Fac Ext Cet Arc Hub Gar Fac Was Fac DSF Fac Gar Fac Gar Res Tes Turns Passed 31336 | 119 939 551 421 1056 1625 1306 1548 1085 2993 620 489 218 670 1655 6172 258 300 336 2495 2410 1719 1560 162 629 Spaces Moved 15025 | 53 467 329 263 514 889 636 907 678 1586 325 253 102 331 736 2824 95 114 132 1071 921 643 850 111 195 Core 7 | 7 . . . . . . . . . . . . . . . . . . . . . . . . Treads 15018 | 46 467 329 263 514 889 636 907 678 1586 325 253 102 331 736 2824 95 114 132 1071 921 643 850 111 195 Legs . | . . . . . . . . . . . . . . . . . . . . . . . . . Wheels . | . . . . . . . . . . . . . . . . . . . . . . . . . Hover . | . . . . . . . . . . . . . . . . . . . . . . . . . Flight . | . . . . . . . . . . . . . . . . . . . . . . . . . Fastest Speed 50 | 50 160 160 160 160 145 145 145 145 145 153 153 165 165 165 165 160 240 165 152 152 147 147 147 147 Average Speed 161 | 145 160 160 160 160 150 145 145 145 146 153 163 165 165 165 170 231 240 168 156 210 181 147 147 147 Slowest Speed 330 | 160 160 160 160 160 160 145 145 145 153 153 165 165 165 165 330 240 240 240 165 237 237 147 147 147 Overloaded Moves . | . . . . . . . . . . . . . . . . . . . . . . . . . Propulsion Burnouts . | . . . . . . . . . . . . . . . . . . . . . . . . . Robots Hopped . | . . . . . . . . . . . . . . . . . . . . . . . . . Cave-ins Triggered . | . . . . . . . . . . . . . . . . . . . . . . . . . Exploration Rate (%) 64 | 4 83 68 70 90 77 89 73 98 47 64 78 77 50 86 80 80 6 95 43 93 25 86 6 41 Regions Visited 24 Branch Regions 10 Pre-discovered Areas 13 | . 2 . 1 . 1 . . 9 . . . . . . . . . . . . . . . . Known Exits Taken 17 | 1 1 1 1 1 1 1 . 1 1 1 1 1 1 . . . 1 . 1 . 1 . 1 . Unknown Exits Taken . | . . . . . . . . . . . . . . . . . . . . . . . . . Scrap Searched 2 | . . 1 . 1 . . . . . . . . . . . . . . . . . . . . Spaces Dug 15 | . . . . . . . . . . . . . . 3 3 . . . 5 . 4 . . . Terrain Destroyed 446 | . . . . . 28 33 . . 110 5 4 1 10 15 21 . . . 13 3 61 80 . 62 Melee . | . . . . . . . . . . . . . . . . . . . . . . . . . Projectile 134 | . . . . . . 4 . . 37 5 4 1 10 15 21 . . . 13 3 10 8 . 3 AOE 312 | . . . . . 28 29 . . 73 . . . . . . . . . . . 51 72 . 59 Terrain Rammed . | . . . . . . . . . . . . . . . . . . . . . . . . . Walls Destroyed . | . . . . . . . . . . . . . . . . . . . . . . . . . Machines Disabled . | . . . . . . . . . . . . . . . . . . . . . . . . . Actions | -11 -10 -10 -10 -9 -8 -8 -8 -8 -6 -6 -6 -6 -6 -6 -5 -5 -5 -5 -4 -4 -4 -4 -3 -3 --------- Run | Yrd Mat Min Exi Min Mat Sto Gar Rec Fac Ext Cet Arc Hub Gar Fac Was Fac DSF Fac Gar Fac Gar Res Tes Total 20903 | 83 573 348 264 691 1105 902 1035 760 2061 412 303 145 414 1101 4010 131 140 246 1879 1387 1188 1162 110 453 Wait 2024 | 18 38 13 . 124 63 122 18 59 175 50 2 30 43 229 526 . 23 24 188 29 189 44 . 17 Move 15004 | 52 466 328 262 513 888 635 906 677 1585 324 252 101 330 735 2824 94 113 131 1071 920 643 849 110 195 Hop . | . . . . . . . . . . . . . . . . . . . . . . . . . Pick Up 68 | . 1 . 1 1 5 1 3 2 8 1 . . . 2 9 1 . 1 14 5 10 2 . 1 Fast Attach 130 | 9 2 2 . 6 11 7 2 1 18 . 4 . . 3 20 3 . 1 22 7 4 1 . 7 Attach 19 | . . . . . . 1 . . 2 . . . . . 6 2 . 1 4 . 2 . . 1 Detach 11 | . . . . . 2 . . . 2 . . . . . 5 . . . 2 . . . . . Swap 100 | . 1 . . . 13 2 2 . 19 4 5 3 . 6 18 3 1 . 8 3 4 . . 8 Drop 163 | . 1 2 1 4 20 7 2 3 33 . 7 1 . 6 25 1 . 1 29 6 10 3 . 1 Fire 2257 | 4 43 3 . 29 49 78 55 10 102 22 19 5 26 53 402 27 3 56 423 296 233 185 . 134 Melee 5 | . . . . . 5 . . . . . . . . . . . . . . . . . . . Ram . | . . . . . . . . . . . . . . . . . . . . . . . . . Kick . | . . . . . . . . . . . . . . . . . . . . . . . . . Crush 63 | . . . . . . 2 . . 10 . . . 5 . 17 . . . 23 . 6 . . . Escape Stasis 11 | . . . . . . . . . . . . . . . . . . . . 4 2 . . 5 Rewire 74 | . . . . . . . . . . . . . . 47 . . . . . 7 . 20 . . Trap . | . . . . . . . . . . . . . . . . . . . . . . . . . Miscellaneous 974 | . 21 . . 14 49 47 47 8 107 11 14 5 10 20 158 . . 31 95 110 85 58 . 84 Route ------- -11/Scrapyard -10/Materials (discovered 4 exits: *Mat x3 / *Min) -10/Mines (discovered 3 exits: *Mat / *Exi / Sub) -10/Exiles (discovered 2 exits: *Min x2) -9/Mines (discovered 2 exits: *Mat x2) -8/Materials (discovered 4 exits: *Fac x3 / *Sto) -8/Storage (discovered 3 exits: Fac / *Rec / Gar) -8/Garrison (discovered 3 exits: *Rec x3) -8/Recycling -6/Factory (discovered 5 exits: *Fac x2 / *Low x2 / *Ext) -6/Extension (discovered 3 exits: *Fac x2 / *Cet) -6/Cetus (discovered 2 exits: *Fac / *Arc) -6/Archives (discovered 3 exits: *Fac / *Hub x2) -6/Hub_04(d) (discovered 5 exits: *Fac x4 / Gar) -6/Garrison (discovered 3 exits: *Fac x3) -5/Factory (discovered 7 exits: *Fac x4 / *Upp x2 / Gar) -5/Waste -5/Factory -5/DSF -4/Factory (discovered 8 exits: *Res x4 / *Upp x2 / Arm / Gar) -4/Garrison (discovered 4 exits: *Fac x4) -4/Factory (discovered 9 exits: Res x4 / *Upp x2 / Arm / Gar / Gar) -4/Garrison (discovered 4 exits: *Res x3 / *Fac) -3/Research (discovered 2 exits: *Tes x2) -3/Testing History --------- Turn | Location | Event 2 | -11/Scrapyard | Upgraded with Propulsion slot (x1) 2 | -11/Scrapyard | Upgraded with Utility slot (x4) 2 | -11/Scrapyard | Upgraded with Weapon slot (x1) 3 | -11/Scrapyard | Identified exit to Materials 3 | -11/Scrapyard | Discovered exit to Materials (range 16) 120 | -11/Scrapyard | Entered Materials 306 | -10/Materials | Build established: Hacker-Mutant 470 | -10/Materials | Identified exit to Materials 470 | -10/Materials | Discovered exit to Materials (range 17) 551 | -10/Materials | Reached level 2 624 | -10/Materials | Identified exit to Mines 624 | -10/Materials | Discovered exit to Mines (range 12) 653 | -10/Materials | Discovered exit to Materials (range 11) 724 | -10/Materials | Build established: Hacker-Skirmisher 866 | -10/Materials | Discovered exit to Materials (range 13) 1059 | -10/Materials | Entered Mines 1096 | -10/Mines | Learned Materials security intel 1122 | -10/Mines | Found a damaged Exp. Sensor Array with a note attached 1126 | -10/Mines | Found Prototype Device 1126 | -10/Mines | Identified Exp. Sensor Array 1156 | -10/Mines | Met a Derelict bent on vengeance 1170 | -10/Mines | Discovered exit to Materials (range 6) 1454 | -10/Mines | Identified exit to Subcaves 1454 | -10/Mines | Discovered exit to Subcaves (range 15) 1602 | -10/Mines | Deemed a non-threat by the Exiles lab entrance 1602 | -10/Mines | Identified exit to Exiles 1602 | -10/Mines | Discovered exit to Exiles (range 6) 1610 | -10/Mines | Entered Exiles 1631 | -10/Exiles | Identified exit to Mines 1631 | -10/Exiles | Discovered exit to Mines (range 16) 1654 | -10/Exiles | Met 8R-AWN 1676 | -10/Exiles | Met EX-HEX 1734 | -10/Exiles | Met EX-DEC 1762 | -10/Exiles | Learned location of Zion (-6) 1796 | -10/Exiles | Met EX-BIN 1815 | -10/Exiles | Aligned with FarCom system 1817 | -10/Exiles | Given EX-Vault access code 1854 | -10/Exiles | Opened EX-Vault 1867 | -10/Exiles | Found Skeleton Box 1903 | -10/Exiles | Warned to stay clear of 0b10 Research branches 2011 | -10/Exiles | Discovered exit to Mines (range 16) 2031 | -10/Exiles | Left Exiles lab with Skeleton Box 2031 | -10/Exiles | Entered Mines 2033 | -9/Mines | Reached level 3 2155 | -9/Mines | A weapon hastily lodged in a ceiling crevice suddenly fell to the ground 2249 | -9/Mines | Learned Materials trap positions 2436 | -9/Mines | Reached level 4 2475 | -9/Mines | Identified exit to Materials 2475 | -9/Mines | Discovered exit to Materials (range 11) 2478 | -9/Mines | Met a Derelict shopkeep closing up shop 2497 | -9/Mines | Upgraded with Utility slot (x2) 2497 | -9/Mines | Upgraded with Weapon slot (x1) 2668 | -9/Mines | Discovered exit to Materials (range 11) 2979 | -9/Mines | Received a Rocket Launcher from a helpful Derelict 3087 | -9/Mines | Entered Materials 3088 | -8/Materials | Loaded intel: 20 trap records 3089 | -8/Materials | Reached level 5 3089 | -8/Materials | Reached level 6 3097 | -8/Materials | Upgraded with Weapon slot (x1) 3193 | -8/Materials | Identified exit to Storage 3193 | -8/Materials | Discovered exit to Storage (range 17) 3401 | -8/Materials | Identified exit to Factory 3401 | -8/Materials | Discovered exit to Factory (range 17) 3456 | -8/Materials | Reached level 7 3640 | -8/Materials | Upgraded with Power slot (x1) 3640 | -8/Materials | Upgraded with Propulsion slot (x1) 3719 | -8/Materials | Build established: Hacker-Assassin 3758 | -8/Materials | Discovered exit to Factory (range 11) 4032 | -8/Materials | Reached level 8 4099 | -8/Materials | Discovered exit to Factory (range 3) 4411 | -8/Materials | Build established: Hacker-Skirmisher 4712 | -8/Materials | Entered Storage 4714 | -8/Storage | Reached level 9 4734 | -8/Storage | Upgraded with Utility slot (x1) 4844 | -8/Storage | Reached level 10 4889 | -8/Storage | Destroyed 9 combat bots 5042 | -8/Storage | Remotely autohacked Sealed Heavy Doors 5078 | -8/Storage | Remotely autohacked Sealed Blast Doors 5078 | -8/Storage | Identified exit to Recycling 5078 | -8/Storage | Discovered exit to Recycling (range 7) 5332 | -8/Storage | Discovered exit to Factory (range 9) 5333 | -8/Storage | Remotely autohacked Sealed Heavy Doors 5364 | -8/Storage | Reached level 11 5624 | -8/Storage | Remotely autohacked Sealed Heavy Doors 5651 | -8/Storage | Remotely autohacked Sealed Heavy Doors 5832 | -8/Storage | Upgraded with Utility slot (x1) 5862 | -8/Storage | Assisted by bots powering up and referring to "LRC-V3" 5977 | -8/Storage | Met a pair of Derelict thieves 6004 | -8/Storage | Reached level 12 6014 | -8/Storage | Identified exit to Garrison 6018 | -8/Storage | Entered Garrison 6018 | -8/Garrison | Accompanied by 9 allies 6032 | -8/Garrison | Lost 3 allies 6166 | -8/Garrison | Triggered checkpoint 6180 | -8/Garrison | Triggered checkpoint 6199 | -8/Garrison | Triggered checkpoint 6245 | -8/Garrison | Lost 7 allies 6327 | -8/Garrison | Discovered exit to Recycling (range 15) 6343 | -8/Garrison | Installed Relay Interface Framework 6388 | -8/Garrison | Triggered checkpoint 6390 | -8/Garrison | Reached level 13 6438 | -8/Garrison | Garrison Relay disabled 6441 | -8/Garrison | Upgraded with Utility slot (x1) 6620 | -8/Garrison | Discovered exit to Recycling (range 11) 6680 | -8/Garrison | Triggered checkpoint 6699 | -8/Garrison | Garrison Relay disabled 6864 | -8/Garrison | Triggered checkpoint 6891 | -8/Garrison | Garrison Relay disabled 6958 | -8/Garrison | Discovered exit to Recycling (range 11) 7328 | -8/Garrison | Triggered checkpoint 7364 | -8/Garrison | Garrison Relay disabled 7566 | -8/Garrison | Entered Recycling 7839 | -8/Recycling | Reached level 14 7938 | -8/Recycling | Identified exit to Factory 7938 | -8/Recycling | Discovered exit to Factory (range 17) 8651 | -8/Recycling | Entered Factory 8653 | -6/Factory | Reached level 15 8654 | -6/Factory | Identified exit to DSF 8886 | -6/Factory | Remotely autohacked Sealed Blast Doors 8886 | -6/Factory | Identified exit to Extension 8886 | -6/Factory | Discovered exit to Extension (range 7) 9001 | -6/Factory | Search patrols dispatched 9616 | -6/Factory | Reached level 16 9831 | -6/Factory | Upgraded with Utility slot (x1) 9977 | -6/Factory | Fabricated Imp. Shield Generator (x2) 10114 | -6/Factory | Identified exit to Lower Caves 10114 | -6/Factory | Discovered exit to Lower Caves (range 13) 10206 | -6/Factory | Build established: Hacker-Tank 10320 | -6/Factory | Identified exit to Factory 10320 | -6/Factory | Discovered exit to Factory (range 14) 10322 | -6/Factory | Reached level 17 10346 | -6/Factory | Allied Derelicts emerged from ambush trap array 10569 | -6/Factory | Cargo convoy interrupted 10603 | -6/Factory | Core integrity fell below 50% 10610 | -6/Factory | Lost 3 allies 10636 | -6/Factory | Found Mni. Smartbomb Launcher 10807 | -6/Factory | Discovered exit to Factory (range 14) 10975 | -6/Factory | Reached level 18 11010 | -6/Factory | Upgraded with Utility slot (x1) 11187 | -6/Factory | Discovered exit to Lower Caves (range 20) 11432 | -6/Factory | Destroyed 8 combat bots 11451 | -6/Factory | First assault squad dispatched 11512 | -6/Factory | Reached level 19 11644 | -6/Factory | Entered Extension 11922 | -6/Extension | Remotely autohacked Sealed Heavy Doors 11923 | -6/Extension | Rescued A7 11951 | -6/Extension | Remotely autohacked Sealed Heavy Doors 11952 | -6/Extension | Rescued a captive Derelict 11953 | -6/Extension | Rescued a captive Derelict 11970 | -6/Extension | Energy Cycler disabled 11970 | -6/Extension | Rescued a captive Derelict 11970 | -6/Extension | Rescued a captive Derelict 11970 | -6/Extension | Rescued a captive Derelict 11973 | -6/Extension | Rescued a captive Derelict 11973 | -6/Extension | Rescued a captive Derelict 11977 | -6/Extension | Rescued a captive Derelict 11983 | -6/Extension | Rescued a captive Derelict 11997 | -6/Extension | Spotted B-75 Beast 12006 | -6/Extension | Destroyed B-75 Beast 12008 | -6/Extension | Spotted B-75 Beast 12014 | -6/Extension | Destroyed B-75 Beast 12022 | -6/Extension | Discovered exit to Factory (range 17) 12233 | -6/Extension | Discovered exit to Factory (range 17) 12233 | -6/Extension | Identified exit to Cetus 12233 | -6/Extension | Discovered exit to Cetus (range 17) 12264 | -6/Extension | Entered Cetus 12264 | -6/Cetus | Accompanied by 2 allies (A7) 12269 | -6/Cetus | Acquired a Cetus Manufacturing Module code from A7 12285 | -6/Cetus | Spotted Cetus Guard 12285 | -6/Cetus | Spotted Cetus Guard 12289 | -6/Cetus | Allies destroyed Cetus Guard 12289 | -6/Cetus | Spotted Cetus Guard 12289 | -6/Cetus | Spotted Cetus Guard 12293 | -6/Cetus | Destroyed Cetus Guard 12297 | -6/Cetus | Reached level 20 12297 | -6/Cetus | Destroyed Cetus Guard 12299 | -6/Cetus | Destroyed Cetus Guard 12412 | -6/Cetus | Started Cetus Manufacturing Module 12416 | -6/Cetus | Remotely autohacked Sealed Heavy Doors 12424 | -6/Cetus | Escorted A7 to Cetus Mainframe 12437 | -6/Cetus | Manufactured an Enhanced Grunt 12443 | -6/Cetus | Identified exit to Archives 12443 | -6/Cetus | Discovered exit to Archives (range 17) 12462 | -6/Cetus | Manufactured an Enhanced Grunt 12482 | -6/Cetus | Spotted Cetus Guard 12482 | -6/Cetus | Spotted Cetus Guard 12487 | -6/Cetus | Manufactured an Enhanced Grunt 12489 | -6/Cetus | Destroyed Cetus Guard 12490 | -6/Cetus | Allies destroyed Cetus Guard 12490 | -6/Cetus | Spotted Cetus Guard 12490 | -6/Cetus | Spotted Cetus Guard 12495 | -6/Cetus | Destroyed Cetus Guard 12496 | -6/Cetus | Allies destroyed Cetus Guard 12511 | -6/Cetus | Discovered exit to Factory (range 16) 12512 | -6/Cetus | Manufactured an Enhanced Grunt 12521 | -6/Cetus | Met Revision 17 12537 | -6/Cetus | Manufactured an Enhanced Grunt 12692 | -6/Cetus | Build established: Hacker-Gunner 12739 | -6/Cetus | Murdered A7 12739 | -6/Cetus | Destroyed A7 12745 | -6/Cetus | Extracted ID and sensor layout for unrecognized location from A7's data core 12753 | -6/Cetus | Entered Archives 12753 | -6/Archives | Accompanied by 5 allies 12805 | -6/Archives | Identified exit to Hub_04(d) 12805 | -6/Archives | Discovered exit to Hub_04(d) (range 17) 12814 | -6/Archives | Unable to access archive contents 12848 | -6/Archives | Unable to access archive contents 12856 | -6/Archives | Discovered exit to Factory (range 16) 12866 | -6/Archives | Unable to access archive contents 12874 | -6/Archives | Discovered exit to Hub_04(d) (range 17) 12886 | -6/Archives | Unable to access archive contents 12971 | -6/Archives | Entered Hub_04(d) 12971 | -6/Hub_04(d) | Accompanied by 4 allies 13116 | -6/Hub_04(d) | Build established: Scavenger-Skirmisher 13175 | -6/Hub_04(d) | Garrison activated, responded to threat 13203 | -6/Hub_04(d) | Reached level 21 13329 | -6/Hub_04(d) | Identified exit to Garrison 13515 | -6/Hub_04(d) | Lost 4 allies 13566 | -6/Hub_04(d) | Network Hub disabled 13566 | -6/Hub_04(d) | Network Hub disabled 13641 | -6/Hub_04(d) | Entered Garrison 13801 | -6/Garrison | Garrison Relay disabled 13973 | -6/Garrison | Build established: Scavenger-Tank 13990 | -6/Garrison | Triggered checkpoint 13996 | -6/Garrison | Triggered checkpoint 14072 | -6/Garrison | Triggered checkpoint 14091 | -6/Garrison | Discovered exit to Factory (range 41) 14091 | -6/Garrison | Discovered exit to Factory (range 85) 14091 | -6/Garrison | Discovered exit to Factory (range 24) 14109 | -6/Garrison | Garrison Relay disabled 14158 | -6/Garrison | Triggered checkpoint 14173 | -6/Garrison | Spotted B-75 Beast 14177 | -6/Garrison | Spotted B-86 Titan 14193 | -6/Garrison | Destroyed B-86 Titan 14203 | -6/Garrison | Destroyed B-75 Beast 14241 | -6/Garrison | Rewired B-75 Beast 14394 | -6/Garrison | Triggered checkpoint 14496 | -6/Garrison | Triggered checkpoint 14602 | -6/Garrison | Triggered checkpoint 14608 | -6/Garrison | Garrison Relay disabled 14643 | -6/Garrison | Expanded RIF knowledge: Watcher Feeds 14714 | -6/Garrison | Found embedded Infiltrators 14932 | -6/Garrison | Spotted B-75 Beast 14932 | -6/Garrison | Spotted B-75 Beast 14946 | -6/Garrison | Destroyed B-75 Beast 14951 | -6/Garrison | Destroyed B-75 Beast 15170 | -6/Garrison | Triggered checkpoint 15250 | -6/Garrison | Garrison Relay disabled 15296 | -6/Garrison | Entered Factory 15296 | -5/Factory | Accompanied by 3 allies 15298 | -5/Factory | Reached level 22 15399 | -5/Factory | Upgraded with Utility slot (x1) 15668 | -5/Factory | Identified exit to Upper Caves 15691 | -5/Factory | Identified exit to DSF 16069 | -5/Factory | Spotted B-75 Beast 16257 | -5/Factory | Fabricated Thermic Laser (x2) 16438 | -5/Factory | Build established: Hacker-Tank 16598 | -5/Factory | Reached level 23 17155 | -5/Factory | Identified exit to Factory 17155 | -5/Factory | Discovered exit to Factory (range 16) 17227 | -5/Factory | Garrison activated, responded to threat 17281 | -5/Factory | Identified exit to Garrison 17550 | -5/Factory | Discovered exit to Factory (range 10) 17977 | -5/Factory | Cargo convoy interrupted 18320 | -5/Factory | Discovered exit to Factory (range 17) 18334 | -5/Factory | Fabricated Quantum Capacitor? 18641 | -5/Factory | Discovered exit to Factory (range 5) 18894 | -5/Factory | Fabricated Adv. Shield Generator (x2) 18967 | -5/Factory | Fabricated Quantum Reactor? 19040 | -5/Factory | Fabricated Adv. Cryofiber Web (x1) 19096 | -5/Factory | Fabricated Exp. Thermal Generator (x1) 19654 | -5/Factory | Reached level 24 19892 | -5/Factory | Fabricated M-13 Machinist (x1) 21468 | -5/Factory | Sucked down chute 21468 | -5/Factory | Entered Waste 21469 | -5/Waste | Met a frightened Derelict 21478 | -5/Waste | Spotted C-40 Crusher 21482 | -5/Waste | Spotted C-40 Crusher 21483 | -5/Waste | EMP discharged 21489 | -5/Waste | Destroyed C-40 Crusher 21499 | -5/Waste | Crushed by Compactor (1 part destroyed) 21502 | -5/Waste | Crushed by Compactor (1 part destroyed, 1 dropped) 21505 | -5/Waste | Crushed by Compactor (1 part destroyed, 2 dropped) 21512 | -5/Waste | Spotted C-40 Crusher 21536 | -5/Waste | Lost 3 parts (1n1u1w) 21542 | -5/Waste | Spotted C-40 Crusher 21542 | -5/Waste | Spotted C-40 Crusher 21565 | -5/Waste | Spotted C-40 Crusher 21583 | -5/Waste | EMP discharged 21682 | -5/Waste | Identified exit to Factory 21682 | -5/Waste | Discovered exit to Factory (range 12) 21683 | -5/Waste | EMP discharged 21726 | -5/Waste | Entered Factory 22024 | -5/Factory | Identified exit to DSF 22026 | -5/Factory | Entered DSF 22044 | -5/DSF | Additional patrols routed to DSF 22237 | -5/DSF | Sterilization system engaged 22257 | -5/DSF | Ambient heat levels rising (+10) 22272 | -5/DSF | Ambient heat levels rising (+10) 22287 | -5/DSF | Ambient heat levels rising (+10) 22302 | -5/DSF | Ambient heat levels rising (+10) 22317 | -5/DSF | Ambient heat levels rising (+10) 22332 | -5/DSF | Ambient heat levels rising (+10) 22337 | -5/DSF | Discovered exit to Factory (range 15) 22347 | -5/DSF | Ambient heat levels rising (+10) 22362 | -5/DSF | Ambient heat levels rising (+10) 22362 | -5/DSF | Entered Factory 22364 | -4/Factory | Reached level 25 22366 | -4/Factory | Upgraded with Utility slot (x1) 22487 | -4/Factory | Identified exit to Upper Caves 22487 | -4/Factory | Identified exit to Armory 22487 | -4/Factory | Identified exit to Research 23114 | -4/Factory | Spotted B-86 Titan 23169 | -4/Factory | Destroyed B-86 Titan 24032 | -4/Factory | Fabricated Imp. Plasma Cutter (x2) 24113 | -4/Factory | Found Prototype Processor 24113 | -4/Factory | Identified Exp. Melee Analysis Suite 24220 | -4/Factory | Garrison activated, responded to threat 24310 | -4/Factory | Cargo convoy interrupted 24319 | -4/Factory | Reached level 26 24506 | -4/Factory | Found Prototype Slashing Weapon 24506 | -4/Factory | Identified Centrium Greatsword 24534 | -4/Factory | Found Prototype Protection 24559 | -4/Factory | Identified Centrium Heavy Armor Plating 24591 | -4/Factory | Garrison activated, responded to threat 24612 | -4/Factory | First assault squad dispatched 24719 | -4/Factory | Core integrity fell below 50% 24744 | -4/Factory | Core integrity fell below 20% 24797 | -4/Factory | Destroyed 16 combat bots 24857 | -4/Factory | Identified exit to Garrison 24857 | -4/Factory | Entered Garrison 24990 | -4/Garrison | Triggered checkpoint 25038 | -4/Garrison | Garrison Relay disabled 25139 | -4/Garrison | Reached level 27 25189 | -4/Garrison | Spotted B-86 Titan 25202 | -4/Garrison | Triggered checkpoint 25254 | -4/Garrison | Build established: Hacker-Skirmisher 25270 | -4/Garrison | Destroyed B-86 Titan 25671 | -4/Garrison | Destroyed 8 combat bots 25826 | -4/Garrison | Build established: Hacker-Tank 25854 | -4/Garrison | Garrison Relay disabled 25872 | -4/Garrison | Triggered checkpoint 25924 | -4/Garrison | Triggered checkpoint 25929 | -4/Garrison | Identified exit to Factory 25929 | -4/Garrison | Discovered exit to Factory (range 11) 25932 | -4/Garrison | Triggered checkpoint 26011 | -4/Garrison | Garrison Relay disabled 26108 | -4/Garrison | Triggered checkpoint 26190 | -4/Garrison | Triggered checkpoint 26211 | -4/Garrison | Garrison Relay disabled 26253 | -4/Garrison | Expanded RIF knowledge: Structural Interface 26362 | -4/Garrison | Discovered exit to Factory (range 12) 26663 | -4/Garrison | Spotted Striker 26674 | -4/Garrison | Destroyed Striker 26682 | -4/Garrison | Rewired Executioner 26691 | -4/Garrison | Rewired Executioner 26740 | -4/Garrison | Discovered exit to Factory (range 66) 26740 | -4/Garrison | Discovered exit to Factory (range 90) 26740 | -4/Garrison | Discovered exit to Factory (range 58) 26740 | -4/Garrison | Discovered exit to Factory (range 76) 27064 | -4/Garrison | Garrison Relay disabled 27124 | -4/Garrison | Triggered checkpoint 27207 | -4/Garrison | Garrison Relay disabled 27267 | -4/Garrison | Entered Factory 27267 | -4/Factory | Accompanied by 6 allies 27339 | -4/Factory | Identified exit to Garrison 27385 | -4/Factory | Discovered exit to Upper Caves (range 21) 27900 | -4/Factory | Identified exit to Garrison 27969 | -4/Factory | Spotted B-86 Titan 27985 | -4/Factory | Destroyed B-86 Titan 28061 | -4/Factory | Upgraded with Propulsion slot (x1) 28062 | -4/Factory | Found Exp. Core Analyzer 28114 | -4/Factory | Cargo convoy interrupted 28115 | -4/Factory | Garrison activated, responded to threat 28124 | -4/Factory | Spotted Striker 28144 | -4/Factory | Destroyed Striker 28155 | -4/Factory | Lost 3 allies 28221 | -4/Factory | Reached level 28 28521 | -4/Factory | Destroyed 8 combat bots 28582 | -4/Factory | Fabricated Exp. Core Analyzer? 28767 | -4/Factory | First assault squad dispatched 28947 | -4/Factory | Destroyed 8 combat bots 28986 | -4/Factory | Identified exit to Garrison 28986 | -4/Factory | Entered Garrison 29042 | -4/Garrison | Garrison Relay disabled 29160 | -4/Garrison | Triggered checkpoint 29247 | -4/Garrison | Identified exit to Factory 29247 | -4/Garrison | Discovered exit to Factory (range 6) 29298 | -4/Garrison | Triggered checkpoint 29379 | -4/Garrison | Spotted B-86 Titan 29390 | -4/Garrison | Triggered checkpoint 29434 | -4/Garrison | Destroyed B-86 Titan 29465 | -4/Garrison | Destroyed 15 combat bots 29474 | -4/Garrison | Triggered checkpoint 29544 | -4/Garrison | Garrison Relay disabled 29565 | -4/Garrison | Discovered exit to Research (range 9) 29684 | -4/Garrison | Triggered checkpoint 29823 | -4/Garrison | Garrison Relay disabled 29826 | -4/Garrison | Triggered checkpoint 29926 | -4/Garrison | Triggered checkpoint 29998 | -4/Garrison | Expanded RIF knowledge: Hotswap 30035 | -4/Garrison | Discovered exit to Research (range 11) 30048 | -4/Garrison | Triggered checkpoint 30072 | -4/Garrison | Triggered checkpoint 30083 | -4/Garrison | Garrison Relay disabled 30139 | -4/Garrison | Discovered exit to Research (range 84) 30139 | -4/Garrison | Discovered exit to Research (range 77) 30139 | -4/Garrison | Discovered exit to Research (range 12) 30139 | -4/Garrison | Discovered exit to Factory (range 65) 30240 | -4/Garrison | Triggered checkpoint 30278 | -4/Garrison | Garrison Relay disabled 30293 | -4/Garrison | Phase Generator disabled 30411 | -4/Garrison | Spotted B-86 Titan 30411 | -4/Garrison | Spotted B-86 Titan 30427 | -4/Garrison | Destroyed B-86 Titan 30428 | -4/Garrison | Destroyed B-86 Titan 30463 | -4/Garrison | Found Adv. Powered Armor 30546 | -4/Garrison | Entered Research 30546 | -3/Research | Accompanied by 2 allies 30548 | -3/Research | Reached level 29 30580 | -3/Research | Identified exit to Testing 30708 | -3/Research | Entered Testing 30708 | -3/Testing | Accompanied by 1 ally 30709 | -3/Testing | Maximum security lockdown engaged 30743 | -3/Testing | Upgraded with Utility slot (x1) 30744 | -3/Testing | Found Prototype Launcher 30776 | -3/Testing | Identified Com. Tesla Bomb Launcher 30867 | -3/Testing | Reached level 30 30899 | -3/Testing | Destroyed 27 combat bots 30949 | -3/Testing | Spotted Executioner 30951 | -3/Testing | Scanned by Researcher 30952 | -3/Testing | Spotted Investigator 30963 | -3/Testing | Destroyed Investigator 30972 | -3/Testing | Spotted Executioner 30974 | -3/Testing | Spotted Striker 30977 | -3/Testing | Destroyed Executioner 30992 | -3/Testing | Destroyed Striker 31008 | -3/Testing | Destroyed Executioner 31034 | -3/Testing | System corruption reached 10% 31043 | -3/Testing | Destroyed 22 combat bots 31096 | -3/Testing | Spotted Striker 31105 | -3/Testing | Destroyed Striker 31110 | -3/Testing | Spotted Investigator 31115 | -3/Testing | Destroyed Investigator 31138 | -3/Testing | Core integrity fell below 50% 31141 | -3/Testing | Reached level 31 31158 | -3/Testing | Core integrity fell below 20% 31191 | -3/Testing | Destroyed 43 combat bots 31295 | -3/Testing | Spotted Executioner 31298 | -3/Testing | Spotted Striker 31299 | -3/Testing | Spotted Executioner 31304 | -3/Testing | Spotted Striker 31304 | -3/Testing | Spotted Executioner 31305 | -3/Testing | Destroyed Executioner 31308 | -3/Testing | Spotted Executioner 31308 | -3/Testing | Spotted Executioner 31314 | -3/Testing | Destroyed Striker 31331 | -3/Testing | Destroyed Executioner 31332 | -3/Testing | Destroyed Executioner 31337 | -3/Testing | Destroyed by P-80 Master with Gamma Rifle Last Messages --------------- 31329_ Slug penetrates Earth. 31329_ P-80 Master resets P-80 Master, system corruption cleaned. 31330_ H-77 Assassin system terminally corrupted. 31330_ P-80 Master resets H-77 Assassin, system corruption cleaned. 31331_ P-80 Master shuts down. 31331_ Exp. Targeting Computer fried. 31331_ Imp. Armor Integrity Analyzer fried. 31331_ Executioner destroyed. 31331_ H-77 Assassin destroyed. 31331_ Penetrated by Slug. 31331_ Slug penetrates Earth. 31331_ Penetrated by Slug. 31332_ Executioner system terminally corrupted. 31332_ Imp. Armor Integrity Analyzer fried. 31332_ P-80 Master resets Striker, system corruption cleaned. 31332_ Slug penetrates Earth. 31333_ P-80 Master resets H-77 Assassin, system corruption cleaned. 31334_ P-80 Master resets Executioner, system corruption cleaned. 31335_ Chain reaction triggered in Corrupted Lgt. Antimatter Reactor. 31335_ Slug penetrates Earth. Map ----- +----------------------------------------------------+ | #?######?######### # ############# ? ?# | | ?#?#?#?########### # ############# ? # | | ?######?########## # ############# T | | ##?##?##?##########""T""#### ############# ? " | | ##?#?#####?########"""""#### =## = ###### # | | #??##??#######?############# =%%%%==* ##### # | | ###??####################### [=%[*/=!= ##### # | | #######??#?################# =[=%=%*==[##### # | | ??#?###?#################### =%/%%% [#####* # | | #?#?#?###?########################[%= /%# ###% [# | | ?########?#?########## i/=%%%==%*! ##= [ # | | ?#????#?############## """ *#[[ =!=*! %% =# | | #?##??################ """ !#%[ !%=%% %[% | | ??????#?#############" """" /=/ *%|!= = | | #????#?##############T !! """"*;*= *=!=![!=[ | | ?#?#?################" ! p = ![ *%==!! | | ?????#######?######### %==!!! %%%%%=[[ | | ????##?####?########## !!%[/=[*%%!%%= %[=* | | ????################## *![=%[%*!*[!==%| | | ???######?##########?# =%[%=%%[|p]%![= %= | | ????#?################ =[ %h%%%[!=[*![=*[%=* | | ???################### = =E [==[%!p[%%*====[ | | ???#?##?################ [!%= !!%=%[[[=!%![[=" | | ???######?############ !|[/= ![*=!%%==*==%=!= | | ???################## K=/ =!p%*%!=!|=%% *=!" | | ???########## @ =% [=%%!%%!=[ *=%!% | | ???######## ! % %=!!%%[== %[ |=| | | ??#########?#### / ! =%%=[=!#""###![ ## | | ??#?#######?##### ## /!= ==#=[[/# ###=! # | | ???############# ## ! [ %[=[*[= ## ### # | | ????############# ;;% == ;####### ### + | | ??############### ; [ ;;########### # | | ???######?###### # # [ ### # | | ???############### # ###;;;;;;; #"" # | | ??######?##?##### ## #### # #= = #"T ## | | ????########?##? ############### ###? ? | | ???########?##################### """ """ ### | | ???##?##?""""""################## """ """ #?# | | ?????####"" """################## """ """ ### | | ??????###?" ""#######??######### #?# | | ??????###"" ##K##############?####+######? ? | | ???????##"" + ? | | ??????###" + ? #? | | ????????#" ## #######################?###?+### | | ?????????"?" ####?######?#######?#######? ? ???? | | ??????????### ############################? ?"?" | | ??????????###?##?#?#####################"""? ?"? | | ???????????##############??#?###########""F? ?"?? | | ?????????????#####?###########?######?##?" ?? ???? | | ???????????????##?################?#####?????????? | +----------------------------------------------------+ Best States ------------- Heat Dissipation 117 Coolant Potential 100 Energy Generation 54 Energy Capacity 1200 Matter Stores 300 Matter Capacity 300 Sight Range 17 Robot Scan Range 20 Terrain Scan Range 24 Terrain Scan Density 210 Jamming Range 12 Base Temperature (-) 200 Armor Coverage 800 Resistance: KI 60 Resistance: TH 65 Resistance: EX 35 Resistance: EM 60 Resistance: I 35 Resistance: S 35 Resistance: P 35 Power Shielding 33 Weapon Cycling 30 Evasion (%) 40 Targeting Accuracy 5 Target Analysis 8 Core Analysis 8 Armor Integrity Analysis 40 Recoil Reduction 4 Energy Filtering 50 Particle Charging 37 Offensive Hacking 25 Defensive Hacking 10 Relay Coupler Types 2 Relay Coupler Value 128 Item Schematics ----------------- Med. Armor Plating | -8/Materials | Hacked Hacking Suite | -8/Materials | Hacked System Shield | -8/Materials | Hacked Plasma Cutter | -8/Storage | Hacked Adv. Treads | -8/Storage | Hacked Cld. Ion Engine | -8/Storage | Hacked Imp. Shield Generator | -8/Recycling | Hacked Adv. Sensor Array | -8/Recycling | Hacked Remote Shield | -8/Recycling | Hacked Variable Charge Gun | -6/Factory | Hacked Adv. Concussive RPG | -6/Factory | Hacked System Restoration Module | -6/Factory | Scanalyzed F-cell Engine | -6/Factory | Scanalyzed Imp. Thermal Shield | -6/Factory | Hacked Imp. Plasma Cutter | -6/Factory | Hacked Exp. Thermal Generator | -6/Factory | Scanalyzed Imp. Hacking Suite | -6/Hub_04(d) | Hacked Adv. Plasma Cannon | -6/Hub_04(d) | Hacked Thermic Laser | -5/Factory | Hacked Fusion Bomb Launcher | -5/Factory | Hacked Quantum Reactor | -5/Factory | Scanalyzed Centrium Heavy Treads | -5/Factory | Scanalyzed Centrium Medium Armor Plating | -5/Factory | Scanalyzed Centrium Wheel | -5/Factory | Hacked Hyp. Railgun | -5/Factory | Hacked Lgt. Armored Exoskeleton | -5/Factory | Hacked Adv. Field Recycling Unit | -5/Factory | Hacked Adv. Cryofiber Web | -5/Factory | Hacked Quantum Capacitor | -5/Factory | Hacked Adv. Variable Charge Gun | -5/Factory | Scanalyzed Adv. Plasma Rifle | -5/Factory | Scanalyzed Imp. System Restoration Module | -5/Factory | Scanalyzed Imp. Target Analyzer | -5/Factory | Scanalyzed Adv. Remote Datajack | -5/Factory | Hacked Adv. Shield Generator | -5/Factory | Hacked Prc. Energy Filter | -5/Factory | Scanalyzed Recalibrator | -5/Factory | Scanalyzed Adv. System Restoration Module | -4/Factory | Scanalyzed Force Rifle | -4/Factory | Scanalyzed Exp. Heat Sink | -4/Factory | Hacked Adv. Heavy Siege Treads | -4/Factory | Scanalyzed Enh. Quantum Rifle | -4/Factory | Hacked Adv. Power Amplifier | -4/Factory | Hacked Adv. Force Field | -4/Factory | Hacked Hvy. Armored Exoskeleton | -4/Factory | Hacked Exp. Core Analyzer | -4/Factory | Scanalyzed Imp. Armor Integrity Analyzer | -4/Factory | Scanalyzed Lgt. Quantum Reactor | -4/Factory | Hacked Hyb. Antimatter Reactor | -4/Factory | Hacked Cmb. Linear Gravjet | -3/Research | Hacked Robot Schematics ------------------ M-13 Machinist | -10/Materials | Hacked A-27 Freighter | -4/Factory | Hacked A-15 Conveyor | -4/Factory | Hacked A-02 Transporter | -4/Factory | Hacked Fabricated ------------ Imp. Shield Generator | x2 | -6/Factory Thermic Laser | x2 | -5/Factory Quantum Capacitor | x2 | -5/Factory Adv. Shield Generator | x2 | -5/Factory Quantum Reactor | x2 | -5/Factory Adv. Cryofiber Web | x1 | -5/Factory Exp. Thermal Generator | x1 | -5/Factory M-13 Machinist | x1 | -5/Factory Imp. Plasma Cutter | x2 | -4/Factory Exp. Core Analyzer | x1 | -4/Factory Alien Tech Used ----------------- None Achievements -------------- None Challenges ------------ None RPGLIKE | -11 -10 -10 -10 -9 -8 -8 -8 -8 -6 -6 -6 -6 -6 -6 -5 -5 -5 -5 -4 -4 -4 -4 -3 -3 --------- Run | Yrd Mat Min Exi Min Mat Sto Gar Rec Fac Ext Cet Arc Hub Gar Fac Was Fac DSF Fac Gar Fac Gar Res Tes Levels Raised 30 | . 1 . . 2 4 4 1 1 5 . 1 . 1 . 3 . . . 2 1 1 . 1 2 XP Earned 51530 | 6000 1940 500 350 2047 6867 5121 1888 888 7427 1186 713 246 1284 809 3826 32 . 356 3130 1450 915 814 762 2979 XP Spent 50865 | 5900 . . . 4500 4360 4900 4150 . 8830 . 100 . 105 . 4500 . . . 4875 . 1100 . . 7545 Upgrades 66 | 11 . . . 3 8 2 2 . 7 . 1 . 3 . 3 . . . 7 . 1 . . 18 Power Slot 1 | . . . . . 1 . . . . . . . . . . . . . . . . . . . Propulsion Slot 3 | 1 . . . . 1 . . . . . . . . . . . . . . . 1 . . . Utility Slot 14 | 4 . . . 2 . 2 1 . 2 . . . . . 1 . . . 1 . . . . 1 Weapon Slot 3 | 1 . . . 1 1 . . . . . . . . . . . . . . . . . . . Core Integrity 25 | . . . . . . . . . . . . . 3 . . . . . 5 . . . . 17 Heat Dissipation 5 | . . . . . 3 . . . 2 . . . . . . . . . . . . . . . Energy Generation 1 | . . . . . . . . . 1 . . . . . . . . . . . . . . . Mass Support 1 | . . . . . . . . . . . 1 . . . . . . . . . . . . . Inventory Capacity 6 | 2 . . . . 2 . 1 . 1 . . . . . . . . . . . . . . . Sight Range 1 | 1 . . . . . . . . . . . . . . . . . . . . . . . . Terrain Scan Density 2 | 1 . . . . . . . . 1 . . . . . . . . . . . . . . . Ranged Accuracy 1 | . . . . . . . . . . . . . . . . . . . 1 . . . . . Hack Attack % 1 | . . . . . . . . . . . . . . . 1 . . . . . . . . . Hack Defense % 2 | 1 . . . . . . . . . . . . . . 1 . . . . . . . . . Protomatter Created 15557 | . 178 . . 132 469 755 201 48 1847 398 177 77 191 205 2335 . . 282 1837 899 1337 817 . 3372 Integrity Restored 18214 | . 413 . . 256 901 736 776 113 1836 179 293 62 134 389 2647 . . 665 1846 2377 1681 1105 . 1805 Core 11878 | . 299 . . 131 512 546 537 64 1234 124 55 17 94 254 1607 . . 213 1120 1621 1193 764 . 1493 Parts 6336 | . 114 . . 125 389 190 239 49 602 55 238 45 40 135 1040 . . 452 726 756 488 341 . 312 Protomatter Decayed 7273 | . 39 62 . 33 145 477 144 51 938 584 73 124 407 132 1390 . . 54 681 235 936 388 . 380 Game ------ Seed AuthchipCompactLattice Manual? 0 Play Time 05:47:16 Cumulative 549.0 hours Start 2024.02.06 @ 03:20:57 End 2024.02.11 @ 18:48:23 Sessions 7 Manual Loads 0 Difficulty Explorer Special Mode Winter2019/RPGLIKE Game No. 206 Rogue 185 Adventurer 3 Explorer 18 Win Type - Total 13 Types 8/2/1/1/0/1/0/0/0 Lore% 85 Gallery% 93 Achievement% 82 Wizard Run 0 Options --------- ASCII 0 Keyboard 0 Movement Numpad Keybinds 0 Fullscreen 1 Font 18/SmallcapsGlow Map View 76x50 Zoom Use 0% Tactical HUD 1 Map Filters NONE Filters NONE Steam 1 RUN: 63ea459c-5364-433a-8072-2dd363083f9a